Cogmind - Beta 17 @@@ ROGUE MODE // 2026.08.05 @ 01:30:28 Player: 4R-ZE3 Result: Destroyed by S-10 Pest with Light Assault Rifle Performance ------------- Evolutions (2) 1000 Regions Visited (8) 1600 Robots Destroyed (67) 335 Value Destroyed (2002) 2002 Prototype IDs (3) 60 Alien Tech Used (0) 0 Bonus (0) 0 TOTAL SCORE: 4997 Bonus ------- None Cogmind --------- Core Integrity 0/550 Matter 300/300 Energy 275/275 System Corruption 0% Temperature Cool (75) Movement Walking (108) Location -8/Storage Parts ------- > --- POWER (1) -------- Deuterium Engine > --- PROPULSION (5) --- Carbon-fiber Leg Carbon-fiber Leg Carbon-fiber Leg VSS Leg > --- UTILITY (3) ------ Improved Heat Sink High-capacity Storage Unit > --- WEAPON (2) ------- Precision Beam Rifle Precision Beam Rifle > --- INVENTORY (20) --- Nuclear Core Nuclear Core Aluminum Leg Aluminum Leg Carbon-fiber Leg Improved Heat Sink Improved Heat Sink Large Storage Unit Structural Scanner System Shield High-powered Tractor Beam Medium Laser Medium Laser Particle Gun Particle Gun Particle Gun Particle Gun Precision Beam Rifle Rocket Launcher Mace Peak State ------------ > --- POWER ------------ Deuterium Engine > --- PROPULSION ------- Aluminum Leg Carbon-fiber Leg Carbon-fiber Leg Carbon-fiber Leg VSS Leg > --- UTILITY ---------- Improved Heat Sink High-capacity Storage Unit Medium Armor Plating > --- WEAPON ----------- Precision Beam Rifle Precision Beam Rifle > --- INVENTORY -------- Nuclear Core Nuclear Core Aluminum Leg Aluminum Leg Carbon-fiber Leg Improved Heat Sink Improved Heat Sink Large Storage Unit Structural Scanner System Shield High-powered Tractor Beam Medium Laser Medium Laser Particle Gun Particle Gun Particle Gun Particle Gun Precision Beam Rifle Rocket Launcher Mace [Rating: 34] Favorites ----------- Power Improved Ion Engine Engine Improved Ion Engine Power Core Light Nuclear Core Propulsion Light Treads Treads Light Treads Leg Carbon-fiber Leg Wheel Compact Wheel Hover Unit Airjet Utility Salvage Targeting Computer Device Improved Heat Sink Storage Huge Storage Unit Processor Salvage Targeting Computer Protection Medium Armor Plating Weapon Particle Gun Energy Gun Particle Gun Ballistic Gun Autogun Launcher Rocket Launcher Special Weapon Mining Laser Build | -11 -10 -10 -9 -9 -9 -8 -8 -8 ------- Run | Yrd Mat Min Mat Min Exi Min Mat Sto Slots Evolved 4 | . . . 2 . . . 2 . Power . | . . . . . . . . . Propulsion 3 | . . . 2 . . . 1 . Utility 1 | . . . . . . . 1 . Weapon . | . . . . . . . . . Parts Attached 66 | 6 7 2 7 5 . 5 32 2 Power 10 | 1 1 1 1 . . 2 4 . Engine 5 | 1 . 1 1 . . . 2 . Core 5 | . 1 . . . . 2 2 . Reactor . | . . . . . . . . . Propulsion 24 | 2 . 1 5 2 . 1 13 . Treads 10 | 2 . . 4 2 . 1 1 . Leg 10 | . . . . . . . 10 . Wheel 2 | . . 1 1 . . . . . Hover 2 | . . . . . . . 2 . Flight . | . . . . . . . . . Utility 13 | 1 2 . . 1 . . 9 . Device 5 | . . . . . . . 5 . Storage 4 | 1 1 . . 1 . . 1 . Processor 1 | . 1 . . . . . . . Hackware . | . . . . . . . . . Protection 3 | . . . . . . . 3 . Artifact . | . . . . . . . . . Weapon 19 | 2 4 . 1 2 . 2 6 2 Energy Gun 11 | 1 . . . 2 . 1 5 2 Energy Cannon . | . . . . . . . . . Ballistic Gun 6 | 1 3 . 1 . . . 1 . Ballistic Cannon . | . . . . . . . . . Launcher 1 | . . . . . . 1 . . Special Weapon 1 | . 1 . . . . . . . Impact Weapon . | . . . . . . . . . Slashing Weapon . | . . . . . . . . . Piercing Weapon . | . . . . . . . . . Special Melee Weapon . | . . . . . . . . . Unidentified Prototypes 3 | . . . . . . . 2 1 Parts Lost 30 | . . 2 4 3 . 2 17 2 Power 3 | . . 1 . . . 1 1 . Propulsion 15 | . . 1 2 2 . 1 8 1 Utility 4 | . . . . . . . 3 1 Weapon 8 | . . . 2 1 . . 5 . Highest Loss Streak 10 | . . 1 2 1 . 2 10 2 To Critical Strikes 1 | . . . . . . 1 . . Average Backups 15 | 2 7 11 12 17 19 19 9 18 Power 1 | . 1 1 1 1 1 . 1 2 Propulsion 4 | 1 2 1 . 6 6 5 . 2 Utility 4 | . 1 3 4 5 6 7 3 6 Weapon 4 | . 1 4 6 5 6 6 3 7 Tool/Special . | . . . . . . . . . Unused Backups 20 | . 2 . 4 1 . . 2 11 Power . | . . . . . . . . . Propulsion 3 | . . . . . . . . 3 Utility 6 | . . . . 1 . . 2 3 Weapon 11 | . 2 . 4 . . . . 5 Tool/Special . | . . . . . . . . . Average Slot Usage (%) 95 | . 96 99 93 99 100 99 77 96 Engine 8 | . 2 13 11 11 11 4 3 9 Core 2 | . 11 . . . . 6 5 . Treads 33 | . 28 24 28 43 44 43 6 . Leg 3 | . . . . . . . 19 43 Device 1 | . . . . . . . 7 9 Storage 10 | . 14 14 11 11 11 11 6 9 Processor 9 | . 10 14 11 11 11 11 2 . Energy Gun 14 | . 2 . . 19 22 21 14 18 Ballistic Gun 7 | . 24 28 22 2 . . 2 . Peak Build Rating 34 | 6 13 13 17 20 20 20 31 34 Average Rating 17 | 4 11 11 14 18 20 19 20 30 On Entrance 15 | . 6 12 12 17 20 20 20 29 Avg Prop Armor Cover (%) 5 | . . 3 8 . . . 3 . Naked Turns . | . . . . . . . . . Heaviest Build 93 | 11 31 31 33 93 93 93 92 63 Greatest Support 103 | 40 40 40 86 86 86 86 103 67 Greatest Overweight (x) 4 | . . 1 1 1 1 1 4 . Average Overweight (x) . | . . . . . 1 1 . . Largest Inventory Capacity 25 | 8 15 15 15 25 25 25 25 20 Average Capacity 20 | 7 9 15 15 24 25 25 14 20 Most Carried 22 | 4 10 13 15 21 22 22 21 20 Average Carried 16 | 2 7 11 12 18 21 21 10 18 Final Capacity 25 | 8 15 15 15 25 25 25 20 20 Final Carried 22 | 4 10 13 14 20 22 22 17 20 Class Distribution -------------------- 63% | Scavenger-Mutant 36% | Mutant Dominant Class ---------------- Mutant | -10/Materials Mutant | -10/Mines Mutant | -9/Materials Scavenger-Mutant | -9/Mines Scavenger-Mutant | -9/Exiles Scavenger-Mutant | -8/Mines Scavenger-Mutant | -8/Materials Scavenger-Mutant | -8/Storage Resources | -11 -10 -10 -9 -9 -9 -8 -8 -8 ----------- Run | Yrd Mat Min Mat Min Exi Min Mat Sto Matter Collected 1631 | 241 137 303 373 88 . 85 384 20 Remotely . | . . . . . . . . . Salvage Created 2742 | . 202 374 541 333 . 257 842 193 Parts 149 | . 10 27 29 17 . 25 38 3 Haulers Intercepted 6 | . . . 2 . . . 3 1 Recyclers Shooed . | . . . . . . . . . Parts Field Recycled . | . . . . . . . . . Retrieved Matter . | . . . . . . . . . Parts Self-Destructed . | . . . . . . . . . Prevented . | . . . . . . . . . Parts Restored . | . . . . . . . . . Kills | -11 -10 -10 -9 -9 -9 -8 -8 -8 ------- Run | Yrd Mat Min Mat Min Exi Min Mat Sto Combat Hostiles Destroyed 56 | . 4 7 6 9 . 13 13 4 Melee 1 | . . . . . . 1 . . Guns 52 | . 4 7 6 9 . 12 11 3 Classes Destroyed 14 | . 1 1 5 3 . 2 2 . Worker 1 | . . . . . . 1 . . Tunneler 2 | . . 2 . . . . . . Hauler 6 | . . . 2 . . . 3 1 Recycler 3 | . . . 2 . . . 1 . Watcher 1 | . . . 1 . . . . . Swarmer 16 | . . . 3 . . 12 . 1 Grunt 21 | . 4 7 . 3 . . 5 2 Duelist 1 | . . . . 1 . . . . Sentry 8 | . . . 3 2 . . 2 1 Demolisher 1 | . . . . 1 . . . . Specialist 2 | . . . . . . . 2 . Hunter 4 | . . . . . . 1 3 . Heavy 1 | . . . . . . . 1 . Assembled 2 | . . . . 2 . . . . Best Kill Streak 6 | . 2 2 4 3 . 6 5 3 Combat Bots Only 6 | . 2 2 3 2 . 6 5 2 Max Kills in Single Turn 2 | . 1 1 2 1 . 2 1 1 Gunslinging 1 | . . . 1 . . . . . Exploded . | . . . . . . . . . Melee 1 | . . . . . . 1 . . Uniques/NPCs Destroyed . | . . . . . . . . . Combat | -11 -10 -10 -9 -9 -9 -8 -8 -8 -------- Run | Yrd Mat Min Mat Min Exi Min Mat Sto Hostile Shots Fired 461 | . 40 37 44 33 . 62 200 45 Missed 121 | . 10 6 9 7 . 15 62 12 Hits 340 | . 30 31 35 26 . 47 138 33 Melee 2 | . . . . 2 . . . . Projectile 338 | . 30 31 35 24 . 47 138 33 AOE 7 | . . . . 7 . . . . Critical Strikes 17 | . 1 1 3 1 . 2 8 1 Damage Taken 5171 | . 387 441 428 578 . 431 2548 358 Core 980 | . 51 84 125 95 . 71 505 49 Absorbed by Shields . | . . . . . . . . . Core Remaining (%) 57 | 100 . 46 . . . 27 . . Volleys Fired 222 | . 23 31 40 18 . 21 71 18 Largest 2 | . 2 2 2 2 . 2 2 2 Hottest 130 | . 100 46 46 130 . 130 130 130 Shots Fired 437 | . 45 62 80 36 . 40 138 36 Gun 434 | . 44 62 80 36 . 38 138 36 Cannon . | . . . . . . . . . Launcher 2 | . . . . . . 2 . . Special 1 | . 1 . . . . . . . Kinetic 197 | . 30 62 80 9 . . 16 . Thermal 238 | . 15 . . 27 . 38 122 36 Explosive 2 | . . . . . . 2 . . Electromagnetic . | . . . . . . . . . Robot Hit Streak 35 | . 7 15 15 20 . 3 21 35 Robot Miss Streak 5 | . 3 2 5 1 . 5 4 3 Penetration Max . | . . . . . . . . . Secondary Targets 7 | . 1 . 1 1 . . 3 1 Max Gunslinging Chain 1 | . 1 . 1 1 . . 1 1 Shots Hit Robots 319 | . 28 48 57 29 . 18 108 31 Core Hits 115 | . 9 17 16 18 . 16 32 7 Critical Kills . | . . . . . . . . . Critical Parts Destroyed . | . . . . . . . . . Critical Strikes 14 | . . . . 1 . 1 3 9 Burn 14 | . . . . 1 . 1 3 9 Melee Attacks . | . . . . . . . . . Impact . | . . . . . . . . . Slashing . | . . . . . . . . . Piercing . | . . . . . . . . . Sneak Attacks . | . . . . . . . . . Combat Hostiles . | . . . . . . . . . Follow-up Attacks . | . . . . . . . . . Damage Inflicted 5254 | . 361 744 985 449 . 442 1757 516 Guns 5224 | . 361 744 985 449 . 412 1757 516 Cannons . | . . . . . . . . . Explosions . | . . . . . . . . . Melee . | . . . . . . . . . Ramming 30 | . . . . . . 30 . . Kinetic 2321 | . 211 744 985 131 . . 250 . Thermal 2903 | . 150 . . 318 . 412 1507 516 Explosive . | . . . . . . . . . Electromagnetic . | . . . . . . . . . Impact . | . . . . . . . . . Slashing . | . . . . . . . . . Piercing . | . . . . . . . . . Highest Corruption . | . . . . . . . . . Average Corruption . | . . . . . . . . . Corruption Purged . | . . . . . . . . . Corruption Blocked . | . . . . . . . . . Overload Shots . | . . . . . . . . . Overflow Damage . | . . . . . . . . . Projectiles . | . . . . . . . . . Explosions . | . . . . . . . . . Melee . | . . . . . . . . . Knockbacks . | . . . . . . . . . Impact . | . . . . . . . . . Kinetic . | . . . . . . . . . Secondary . | . . . . . . . . . Self-Inflicted Damage . | . . . . . . . . . Shots . | . . . . . . . . . Rammed 6 | . . . . . . 6 . . Targets Rammed 7 | . . . . . . 7 . . Kicked . | . . . . . . . . . Crushed 1 | . . . . . . 1 . . Highest Temperature 380 | . 361 48 27 252 . 346 380 150 Average Temperature 113 | . 140 19 9 99 . 171 138 60 Received Heat Transfer 1485 | . 240 267 153 96 . . 630 99 Effects 6 | . 1 . . . . 2 3 . Shutdowns 1 | . 1 . . . . . . . Energy Bleed 2 | . . . . . . 2 . . Matter Decay 1 | . . . . . . . 1 . Damage (minor) 2 | . . . . . . . 2 . Siege Activations . | . . . . . . . . . Martial Activations . | . . . . . . . . . Shielding Activations . | . . . . . . . . . Robots Disrupted . | . . . . . . . . . Combat Hostiles . | . . . . . . . . . Robots Corrupted . | . . . . . . . . . Combat Hostiles . | . . . . . . . . . Parts Fried . | . . . . . . . . . Impact Corruptions . | . . . . . . . . . Robots Melted 3 | . . . . . . . 2 1 Combat Hostiles 3 | . . . . . . . 2 1 Parts Melted 18 | . 1 . . . . 1 8 8 Heat Transferred 7807 | . 444 . . 851 . 999 3700 1813 Parts Sabotaged . | . . . . . . . . . Parts Stolen . | . . . . . . . . . Parts Stripped . | . . . . . . . . . Power Chain Reactions . | . . . . . . . . . Alert | -11 -10 -10 -9 -9 -9 -8 -8 -8 ------- Run | Yrd Mat Min Mat Min Exi Min Mat Sto Maximum Alert Level . | . . . . . . . . . Low Security (%) 100 | 100 100 100 100 100 . 100 100 100 Level 1 . | . . . . . . . . . Level 2 . | . . . . . . . . . Level 3 . | . . . . . . . . . Level 4 . | . . . . . . . . . Level 5 . | . . . . . . . . . High Security . | . . . . . . . . . Max Security . | . . . . . . . . . Peak Influence 141 | . 50 85 88 59 . 141 124 63 Initial 41 | . . 2 10 19 . . . 41 Average 25 | . 12 29 57 8 . 44 35 43 Influence Increases 1621 | . 115 227 192 220 . 320 435 112 Destroy 0b10 Robot/C 1080 | . 80 140 120 140 . 260 260 80 Destroy 0b10 Robot/NC 65 | . . 10 25 . . 5 20 5 Destroy Leader 274 | . 20 40 46 20 . 40 96 12 Successful Hack 20 | . . 7 . . . . 13 . Disable Machine 45 | . 15 15 . . . . . 15 Destroy Structure 17 | . . . 1 . . 15 1 . Lose Combat Pursuer 120 | . . 15 . 60 . . 45 . Influence Decreases 1558 | . 108 207 167 272 . 320 336 148 Entered New Map 113 | . . 5 17 33 . . . 58 Time Decay 1237 | . 108 182 130 221 . 300 226 70 Lost Part 208 | . . 20 20 18 . 20 110 20 Squads Dispatched 3 | . . . . . . . 3 . Investigation 1 | . . . . . . . 1 . Extermination . | . . . . . . . . . Reinforcement 2 | . . . . . . . 2 . Assault . | . . . . . . . . . Garrison . | . . . . . . . . . Intercept . | . . . . . . . . . Searches Triggered . | . . . . . . . . . Construction Impeded . | . . . . . . . . . Haulers Reinforced . | . . . . . . . . . Active Scanning Responses . | . . . . . . . . . Cargo Convoy Interrupts . | . . . . . . . . . Stealth | -11 -10 -10 -9 -9 -9 -8 -8 -8 --------- Run | Yrd Mat Min Mat Min Exi Min Mat Sto Distress Signals 6 | . 1 . 3 . . . 1 1 Communications Jammed . | . . . . . . . . . Distress Signals . | . . . . . . . . . Times Spotted 84 | . 6 8 13 13 . 13 24 7 Peak Tracking Total 6 | . 3 2 5 4 . 4 6 5 Tactical Retreats 5 | . . 1 . 2 . . 2 . Traps | -11 -10 -10 -9 -9 -9 -8 -8 -8 ------- Run | Yrd Mat Min Mat Min Exi Min Mat Sto Traps Triggered 1 | . . . . . . . 1 . Indirectly . | . . . . . . . . . Trap Hack Attempts . | . . . . . . . . . Triggered . | . . . . . . . . . Disarmed . | . . . . . . . . . Reprogrammed . | . . . . . . . . . Reused . | . . . . . . . . . Traps Extracted . | . . . . . . . . . Installed . | . . . . . . . . . Triggered . | . . . . . . . . . Machines | -11 -10 -10 -9 -9 -9 -8 -8 -8 ---------- Run | Yrd Mat Min Mat Min Exi Min Mat Sto Machines Disabled 4 | . 1 1 1 . . . . 1 Max in Single Turn 1 | . 1 1 1 . . . . 1 Machines Repaired . | . . . . . . . . . Machines Dismantled . | . . . . . . . . . Machines Sabotaged . | . . . . . . . . . Overloaded Fab Kills . | . . . . . . . . . Hacking | -11 -10 -10 -9 -9 -9 -8 -8 -8 --------- Run | Yrd Mat Min Mat Min Exi Min Mat Sto Machines Accessed 10 | . 3 1 . 1 1 . 4 . Terminals 6 | . 2 1 . . . . 3 . Fabricators . | . . . . . . . . . Repair Stations . | . . . . . . . . . Recycling Units 1 | . 1 . . . . . . . Scanalyzers 1 | . . . . . . . 1 . Garrison Access . | . . . . . . . . . Total Hacks 19 | . 6 3 . 1 1 . 8 . Successful 10 | . 2 1 . 1 1 . 5 . Failed 8 | . 3 2 . . . . 3 . Catastrophic 3 | . 2 . . . . . 1 . Database Lockouts 1 | . 1 . . . . . . . Manual 6 | . 2 . . . . . 4 . Terminals 12 | . 3 3 . . . . 6 . Fabricators . | . . . . . . . . . Repair Stations . | . . . . . . . . . Recycling Units 3 | . 3 . . . . . . . Scanalyzers 2 | . . . . . . . 2 . Garrison Access . | . . . . . . . . . Terminal Hacks 6 | . 1 1 . 1 1 . 2 . Record 1 | . . . . . 1 . . . Robot Analysis 2 | . 1 . . . . . 1 . Open Door 1 | . . . . 1 . . . . Branch Access Points 1 | . . . . . . . 1 . Assault Status 1 | . . 1 . . . . . . Fabricator Hacks . | . . . . . . . . . Repair Station Hacks . | . . . . . . . . . Recycling Unit Hacks 1 | . 1 . . . . . . . Retrieve Components 1 | . 1 . . . . . . . Scanalyzer 2 | . . . . . . . 2 . Retrieve Study 2 | . . . . . . . 2 . Garrison Access Hacks . | . . . . . . . . . Unauthorized Hacks 1 | . . . . . . . 1 . Terminals 1 | . . . . . . . 1 . Botnet 1 | . . . . . . . 1 . Fabricators . | . . . . . . . . . Repair Stations . | . . . . . . . . . Recycling Units . | . . . . . . . . . Scanalyzers . | . . . . . . . . . Garrison Access . | . . . . . . . . . Data Cores Recovered . | . . . . . . . . . Used . | . . . . . . . . . Hacking Detections 6 | . 2 1 . . . . 3 . Full Trace Events . | . . . . . . . . . Feedback Events . | . . . . . . . . . Feedback Blocked . | . . . . . . . . . Robot Schematics Acquired . | . . . . . . . . . Robots Built . | . . . . . . . . . Authchips . | . . . . . . . . . Time . | . . . . . . . . . Total Robot Build Rating . | . . . . . . . . . Part Schematics Acquired . | . . . . . . . . . Parts Built . | . . . . . . . . . Authchips . | . . . . . . . . . Time . | . . . . . . . . . Total Part Build Rating . | . . . . . . . . . Part Studies Acquired 2 | . . . . . . . 2 . Parts Repaired . | . . . . . . . . . Time . | . . . . . . . . . Parts Recycled . | . . . . . . . . . Recycled Matter . | . . . . . . . . . Retrieved Matter . | . . . . . . . . . Retrieved Components 3 | . 3 . . . . . . . Parts Scanalyzed . | . . . . . . . . . Part Schematics Acquired . | . . . . . . . . . Parts Damaged . | . . . . . . . . . Bothacking | -11 -10 -10 -9 -9 -9 -8 -8 -8 ------------ Run | Yrd Mat Min Mat Min Exi Min Mat Sto Used RIF Installer . | . . . . . . . . . Robots Hacked . | . . . . . . . . . Non-combat . | . . . . . . . . . Combat . | . . . . . . . . . Robot Hacks Applied . | . . . . . . . . . Relay Couplers Released . | . . . . . . . . . Fabnet Peak Effective % . | . . . . . . . . . Robots Rewired . | . . . . . . . . . Allies Hacked . | . . . . . . . . . Hacks Repelled . | . . . . . . . . . Allies | -11 -10 -10 -9 -9 -9 -8 -8 -8 -------- Run | Yrd Mat Min Mat Min Exi Min Mat Sto Total Allies . | . . . . . . . . . Largest Group . | . . . . . . . . . Highest-Rated Group . | . . . . . . . . . Highest-Rated Ally . | . . . . . . . . . Total Orders . | . . . . . . . . . Ally Attacks . | . . . . . . . . . Total Damage . | . . . . . . . . . Kills . | . . . . . . . . . Allies Corrupted . | . . . . . . . . . Allies Melted . | . . . . . . . . . Intel | -11 -10 -10 -9 -9 -9 -8 -8 -8 ------- Run | Yrd Mat Min Mat Min Exi Min Mat Sto Active Infowar (turns) 166 | . . . . . . . 166 . Structural 166 | . . . . . . . 166 . Robot Analysis Total 2 | . 1 . . . . . 1 . Derelict Logs Recovered 3 | . . 2 . 1 . . . . Drone Launches . | . . . . . . . . . Drone Recoveries . | . . . . . . . . . Exploration | -11 -10 -10 -9 -9 -9 -8 -8 -8 ------------- Run | Yrd Mat Min Mat Min Exi Min Mat Sto Turns Passed 5772 | 69 437 599 290 1859 527 1031 818 142 Spaces Moved 2384 | 44 219 291 107 718 220 377 362 46 Core 13 | 12 . . . . . . 1 . Treads 1973 | 32 219 289 65 718 220 377 53 . Legs 292 | . . . . . . . 246 46 Wheels 44 | . . 2 42 . . . . . Hover 62 | . . . . . . . 62 . Flight . | . . . . . . . . . Fastest Speed 50 | 50 160 115 100 160 240 240 56 111 Average Speed 199 | 130 160 172 137 239 240 240 138 111 Slowest Speed 250 | 160 160 240 160 240 240 240 250 111 Overloaded Moves . | . . . . . . . . . Propulsion Burnouts . | . . . . . . . . . Robots Hopped . | . . . . . . . . . Potential Cave-ins . | . . . . . . . . . Cave-ins Triggered . | . . . . . . . . . Exploration Rate (%) 45 | 5 44 66 22 99 62 74 22 12 Regions Visited 8 Branch Regions 5 Pre-discovered Areas 5 | . . 3 . 1 1 . . . Known Exits Taken 1 | . . . . . . . 1 . Unknown Exits Taken 7 | 1 1 1 1 1 1 1 . . Scrap Searched 5 | . . 1 . 1 . 3 . . Spaces Dug . | . . . . . . . . . Terrain Destroyed 21 | . . . . . . 21 . . Melee . | . . . . . . . . . Projectile . | . . . . . . . . . AOE 21 | . . . . . . 21 . . Terrain Rammed . | . . . . . . . . . Walls Destroyed . | . . . . . . . . . Machines Disabled . | . . . . . . . . . Actions | -11 -10 -10 -9 -9 -9 -8 -8 -8 --------- Run | Yrd Mat Min Mat Min Exi Min Mat Sto Total 2976 | 53 264 339 191 822 220 452 533 102 Wait 214 | . 4 10 21 70 . 38 43 28 Move 2376 | 43 218 290 106 717 219 376 361 46 Hop . | . . . . . . . . . Pick Up 57 | 4 7 5 9 10 1 2 14 5 Fast Attach 31 | 6 3 . 4 . . . 17 1 Attach 20 | . . 2 3 3 . 2 10 . Detach 1 | . . . . . . . 1 . Swap 23 | . 4 1 1 2 . 5 9 1 Drop 25 | . 5 . 7 2 . 1 7 3 Fire 222 | . 23 31 40 18 . 21 71 18 Melee . | . . . . . . . . . Ram . | . . . . . . . . . Kick . | . . . . . . . . . Crush 7 | . . . . . . 7 . . Escape Stasis . | . . . . . . . . . Rewire . | . . . . . . . . . Trap . | . . . . . . . . . Miscellaneous . | . . . . . . . . . Route ------- -11/Scrapyard -10/Materials -10/Mines -9/Materials -9/Mines (discovered 3 exits: *Mat x2 / *Exi) -9/Exiles (discovered 2 exits: [*Min x2]) -8/Mines (discovered 2 exits: *Mat x2) -8/Materials (discovered 2 exits: [*Fac] / *Sto) -8/Storage History --------- Turn | Location | Event 11 | -11/Scrapyard | Discovered new exit (range 15) 70 | -11/Scrapyard | Entered Materials 291 | -10/Materials | Central database locked down 304 | -10/Materials | Build established: Mutant 431 | -10/Materials | Discovered new exit (range 13) 507 | -10/Materials | Entered Mines 572 | -10/Mines | Received a Rocket Launcher from a helpful Derelict 740 | -10/Mines | Found a hidden stash of uninstalled traps 802 | -10/Mines | Learned location of Mines (-8) 985 | -10/Mines | Core integrity fell below 50% 1077 | -10/Mines | Discovered new exit (range 11) 1090 | -10/Mines | Learned location of Storage (-8) 1106 | -10/Mines | Entered Materials 1106 | -9/Materials | Evolved 2 slots: Propulsion x2 1378 | -9/Materials | Discovered new exit (range 6) 1396 | -9/Materials | Entered Mines 1433 | -9/Mines | Discovered new exit (range 5) 1453 | -9/Mines | Found the Drone Emporium 1464 | -9/Mines | Found Prototype Device 1512 | -9/Mines | Assembled infested the area 1967 | -9/Mines | Core integrity fell below 50% 2223 | -9/Mines | A weapon hastily lodged in a ceiling crevice suddenly fell to the ground 2276 | -9/Mines | Build established: Scavenger-Mutant 2603 | -9/Mines | Found a damaged Exp. Sensor Array with a note attached 2608 | -9/Mines | Found Prototype Device 2772 | -9/Mines | Discovered new exit (range 9) 3243 | -9/Mines | Discovered new exit (range 5) 3255 | -9/Mines | Entered Exiles 3287 | -9/Exiles | Discovered new exit (range 15) 3313 | -9/Exiles | Met 8R-AWN 3351 | -9/Exiles | Met EX-HEX 3484 | -9/Exiles | Met EX-DEC 3536 | -9/Exiles | Visited The Gauntlet 3684 | -9/Exiles | Learned location of Zion (-7) 3758 | -9/Exiles | Discovered new exit (range 10) 3782 | -9/Exiles | Entered Mines 3782 | -8/Mines | Discovered new exit (range 9) 4241 | -8/Mines | Discovered new exit (range 13) 4813 | -8/Mines | Entered Materials 4813 | -8/Materials | Evolved 2 slots: Propulsion x1, Utility x1 4982 | -8/Materials | Lost 4 parts (1p3n) 5009 | -8/Materials | Identified Exp. Sensor Array 5091 | -8/Materials | Discovered new exit (range 5) 5106 | -8/Materials | Lost 10 parts (4n2u4w) 5124 | -8/Materials | Core integrity fell below 50% 5185 | -8/Materials | Lost 3 parts (1n1u1w) 5200 | -8/Materials | Identified Bomb Drone Bay 5354 | -8/Materials | Identified exit to Storage 5415 | -8/Materials | Core integrity fell below 20% 5487 | -8/Materials | Discovered new exit (range 13) 5631 | -8/Materials | Entered Storage 5773 | -8/Storage | Destroyed by S-10 Pest with Light Assault Rifle Last Messages --------------- 05716_ Acquired Particle Gun+. 05720_ Acquired 10 matter. 05746_ W-25 Informer sends out distress signal. 05747_ Med. Armor Plating destroyed. 05750_ Critical hit (Burn: +37). 05752_ Y-45 Defender suffers critical hit (Burn). 05755_ Melted Lgt. Armor Plating. 05756_ Aluminum Leg destroyed. 05758_ Y-45 Defender suffers critical hit (Burn). 05758_ Heat Sink melted. 05758_ Beam Rifle melted. 05758_ Hvy. Assault Rifle melted. 05758_ Y-45 Defender destroyed. 05758_ Switching to secondary target: S-10 Pest. 05764_ Transfer Shaft disabled. 05770_ S-10 Pest suffers critical hit (Burn). 05770_ Flight Unit melted. 05770_ S-10 Pest destroyed. Map ----- +----------------------------------------------------+ | | | | | | | | | | | | | | | | | | | | | ???????????????????????????????????????????? | | ???????????????????????????????????????????? | | ???????????????????????????????????????????? | | ???????????????????????????????????????????? | | ??????????###??????????????????????????????? | | ?????????? ??????????????????????????????? | | ?????????? ??????###?????????????????????? | | ??????????? ####?? ?????????????????????? | | ??????????? ?? ?????????????????????? | | ??#####????# #?? ?????????????????????? | | ??# #????# #??# #?????????????????????? | | ??# #????# #??# #?????????????????????? | | ??# #????# #??# #?????????????????????? | | ??# #????# #??#%#?????????????????????? | | ??# #????# ####+######????????????????? | | ??# #????# # @* #????????????????? | | ??# ###### # w s #????????????????? | | ??# =] # s #????????????????? | | ??# % [ + """% "" #????????????????? | | ??# = = # """ """ #????????????????? | | ??# #####+##+## """ """ + ???????????????? | | ??# ## % % # # ???????????????? | | ??# ## # #????????????????? | | ??# ## ##########?????????????????? | | ??# ## #??????????????????????????? | | ??# ?# #??????????????????????????? | | ??# ?# #??????????????????????????? | | ??# ?# #??????????????????????????? | | ??# ?# #??????????????????????????? | | ??# ?# #??????????????????????????? | | ?? ?##########??????????????????????????? | | ?? ?????????????????????????????????????? | | ?? ????????????????????????????????????????? | | ???????????????????????????????????????????? | | ???????????????????????????????????????????? | | ???????????????????????????????????????????? | | ???????????????????????????????????????????? | | ???????????????????????????????????????????? | | ???????????????????????????????????????????? | | ???????????????????????????????????????????? | +----------------------------------------------------+ Best States ------------- Heat Dissipation 59 Energy Generation 14 Energy Capacity 275 Matter Stores 300 Matter Capacity 300 Sight Range 16 Terrain Scan Density 10 Armor Coverage 600 Evasion (%) 55 Recoil Reduction 5 Salvage Targeting 1 Item Schematics ----------------- None Robot Schematics ------------------ None Fabricated ------------ Nothing Repaired ---------- Nothing Studied --------- VSS Leg | -8/Materials | Hacked Particle Gun | -8/Materials | Hacked Alien Tech Used ----------------- None Achievements -------------- None Challenges ------------ None Game ------ Seed TechSystemDeconstructor Manual? 0 Play Time 00:30:43 Cumulative 170.6 hours Start 2026.08.05 @ 00:58:58 End 2026.08.05 @ 01:30:28 Sessions 1 Manual Loads 0 Difficulty Rogue Special Mode None Game No. 179 Rogue 125 Adventurer 54 Explorer 0 Win Type - Total 7 Types 3/0/1/1/0/0/0/1/0/1 Lore% 65 Gallery% 58 Achievement% 55 Wizard Run 0 Options --------- Layout 1 ASCII 0 Keyboard 0 Movement Mouse Keybinds 1 Fullscreen 2 Font 32/Tamsyn Map View 50x35 Zoom Use 0% Tactical HUD 1 Map Filters NONE Filters NONE Steam 1 RUN: 9fda9d07-12b5-4148-a581-402f8acbb763